[Event "Early-Titled-Tuesday-Blitz-March-05-2024"]
[Site "Chess.com"]
[Date "2024.03.05"]
[Round "6"]
[White "Sharafiev_Azat"]
[Black "Mikasinski"]
[Result "1-0"]
[WhiteElo "2485"]
[BlackElo "2611"]
[TimeControl "180+1"]
[EndTime "9:09:38 PST"]
[Termination "Sharafiev_Azat won on time"]

1. Nf3 {[%clk 0:03:00.9]} 1... Nf6 {[%clk 0:02:53.8]} 2. c4 {[%clk 0:03:01.4]}
2... e6 {[%clk 0:02:50]} 3. Nc3 {[%clk 0:02:58.9]} 3... d5 {[%clk 0:02:46.1]} 4.
e3 {[%clk 0:02:59.5]} 4... Be7 {[%clk 0:02:45.5]} 5. b3 {[%clk 0:02:58.8]} 5...
O-O {[%clk 0:02:45.1]} 6. Bb2 {[%clk 0:02:59.4]} 6... b6 {[%clk 0:02:45.4]} 7.
cxd5 {[%clk 0:02:57.1]} 7... exd5 {[%clk 0:02:45.1]} 8. d4 {[%clk 0:02:53.5]}
8... c5 {[%clk 0:02:43.1]} 9. Be2 {[%clk 0:02:48.1]} 9... Nc6 {[%clk 0:02:34.4]}
10. O-O {[%clk 0:02:48.4]} 10... cxd4 {[%clk 0:02:33.8]} 11. Nxd4 {[%clk
0:02:48.1]} 11... Ne5 {[%clk 0:02:33.2]} 12. f4 {[%clk 0:02:19.2]} 12... Neg4
{[%clk 0:02:32.3]} 13. Qd2 {[%clk 0:02:19.7]} 13... Bb4 {[%clk 0:02:28.9]} 14.
Nc6 {[%clk 0:02:16.7]} 14... Ne4 {[%clk 0:02:21.1]} 15. Qd3 {[%clk 0:01:46.6]}
15... Qh4 {[%clk 0:02:03.2]} 16. Bxg4 {[%clk 0:01:40.9]} 16... Bxc3 {[%clk
0:02:03.4]} 17. Bxc3 {[%clk 0:01:36.3]} 17... Bxg4 {[%clk 0:01:58.6]} 18. Bb2
{[%clk 0:01:20.7]} 18... Rfe8 {[%clk 0:01:41.7]} 19. Qxd5 {[%clk 0:01:15.9]}
19... Be2 {[%clk 0:01:39.8]} 20. Ne5 {[%clk 0:00:57.5]} 20... Qh5 {[%clk
0:00:42.4]} 21. Qxe4 {[%clk 0:00:46.7]} 21... Bxf1 {[%clk 0:00:42.6]} 22. Rxf1
{[%clk 0:00:47.2]} 22... Rad8 {[%clk 0:00:42.8]} 23. Qc4 {[%clk 0:00:34.8]}
23... Rd2 {[%clk 0:00:39.3]} 24. Bc3 {[%clk 0:00:24.2]} 24... Rxa2 {[%clk
0:00:39.8]} 25. b4 {[%clk 0:00:22.3]} 25... Rc2 {[%clk 0:00:28.5]} 26. Qd3
{[%clk 0:00:06.6]} 26... Re2 {[%clk 0:00:20.5]} 27. Qd7 {[%clk 0:00:04.1]} 27...
Rf8 {[%clk 0:00:14.2]} 28. Bd4 {[%clk 0:00:04.8]} 28... h6 {[%clk 0:00:10.2]}
29. Qxa7 {[%clk 0:00:04.3]} 29... f6 {[%clk 0:00:06.5]} 30. Nd3 {[%clk
0:00:04.4]} 30... Qd5 {[%clk 0:00:05.9]} 31. Nf2 {[%clk 0:00:04.3]} 31... b5
{[%clk 0:00:04]} 32. Qc5 {[%clk 0:00:04.5]} 32... Qf7 {[%clk 0:00:03.6]} 33.
Qxb5 {[%clk 0:00:04.8]} 33... Rc2 {[%clk 0:00:03.8]} 34. Qd3 {[%clk 0:00:05.2]}
34... Rfc8 {[%clk 0:00:03.9]} 35. b5 {[%clk 0:00:05.2]} 35... R2c7 {[%clk
0:00:04.1]} 36. b6 {[%clk 0:00:05.6]} 36... Rd7 {[%clk 0:00:04.4]} 37. Ne4
{[%clk 0:00:05.7]} 37... Re8 {[%clk 0:00:04.2]} 38. Nc5 {[%clk 0:00:05.6]} 38...
Rdd8 {[%clk 0:00:03.4]} 39. b7 {[%clk 0:00:06]} 39... Re7 {[%clk 0:00:01.7]} 40.
Qb5 {[%clk 0:00:06.5]} 40... Rb8 {[%clk 0:00:01.5]} 41. Ra1 {[%clk 0:00:05.6]}
41... Rexb7 {[%clk 0:00:01.1]} 42. Nxb7 {[%clk 0:00:05.3]} 42... Rxb7 {[%clk
0:00:02]} 43. Qd3 {[%clk 0:00:03.9]} 43... Rd7 {[%clk 0:00:01.8]} 44. Ra8+
{[%clk 0:00:04]} 44... Qf8 {[%clk 0:00:02.2]} 45. Qc4+ {[%clk 0:00:03.8]} 45...
Kh8 {[%clk 0:00:01.5]} 46. Rxf8+ {[%clk 0:00:04.3]} 1-0

[Event "Early-Titled-Tuesday-Blitz-March-05-2024"]
[Site "Chess.com"]
[Date "2024.03.05"]
[Round "6"]
[White "Qvalda"]
[Black "Kotlyar_K"]
[Result "0-1"]
[WhiteElo "2425"]
[BlackElo "2591"]
[TimeControl "180+1"]
[EndTime "9:09:41 PST"]
[Termination "Kotlyar_K won on time"]

1. d4 {[%clk 0:03:00.9]} 1... Nf6 {[%clk 0:03:00]} 2. c4 {[%clk 0:02:58]} 2...
e6 {[%clk 0:02:50.7]} 3. Bf4 {[%clk 0:02:54.8]} 3... c5 {[%clk 0:02:47.1]} 4. d5
{[%clk 0:02:54]} 4... exd5 {[%clk 0:02:48]} 5. cxd5 {[%clk 0:02:54.8]} 5... d6
{[%clk 0:02:48.5]} 6. Nc3 {[%clk 0:02:55]} 6... g6 {[%clk 0:02:49]} 7. Nf3
{[%clk 0:02:55.5]} 7... a6 {[%clk 0:02:47.8]} 8. a4 {[%clk 0:02:54.6]} 8... Bg7
{[%clk 0:02:41.2]} 9. h3 {[%clk 0:02:55.1]} 9... O-O {[%clk 0:02:41.4]} 10. e3
{[%clk 0:02:55.6]} 10... Re8 {[%clk 0:02:41.9]} 11. Be2 {[%clk 0:02:56.2]} 11...
Ne4 {[%clk 0:02:41.8]} 12. Nxe4 {[%clk 0:02:46.4]} 12... Rxe4 {[%clk 0:02:42.7]}
13. Nd2 {[%clk 0:02:30.2]} 13... Rb4 {[%clk 0:02:20.2]} 14. Nc4 {[%clk
0:02:29.6]} 14... Bf8 {[%clk 0:02:18.2]} 15. O-O {[%clk 0:02:23.2]} 15... Qc7
{[%clk 0:02:08.9]} 16. e4 {[%clk 0:02:20.8]} 16... Nd7 {[%clk 0:02:08.4]} 17.
Ra3 {[%clk 0:02:06.5]} 17... Nb6 {[%clk 0:01:54.6]} 18. Qc2 {[%clk 0:01:42]}
18... Bd7 {[%clk 0:01:35.5]} 19. b3 {[%clk 0:01:24.4]} 19... Nxc4 {[%clk
0:01:28.6]} 20. Bxc4 {[%clk 0:01:22.5]} 20... Re8 {[%clk 0:01:29.1]} 21. Bd2
{[%clk 0:00:43]} 21... Qb6 {[%clk 0:00:57.7]} 22. a5 {[%clk 0:00:39.3]} 22...
Qc7 {[%clk 0:00:56.8]} 23. Bxb4 {[%clk 0:00:32.2]} 23... cxb4 {[%clk 0:00:57.7]}
24. Ra2 {[%clk 0:00:32.7]} 24... Bg7 {[%clk 0:00:54]} 25. Qd3 {[%clk 0:00:32.2]}
25... f5 {[%clk 0:00:44.3]} 26. Re2 {[%clk 0:00:26.3]} 26... f4 {[%clk
0:00:42.8]} 27. Ra2 {[%clk 0:00:08.7]} 27... Rf8 {[%clk 0:00:40.6]} 28. Qf3
{[%clk 0:00:08]} 28... Qc5 {[%clk 0:00:35.6]} 29. Bd3 {[%clk 0:00:07.9]} 29...
Qd4 {[%clk 0:00:33.9]} 30. Rc1 {[%clk 0:00:06.9]} 30... Qe5 {[%clk 0:00:21.8]}
31. Rc7 {[%clk 0:00:06.3]} 31... Bc8 {[%clk 0:00:20.8]} 32. Rac2 {[%clk
0:00:05.9]} 32... Qa1+ {[%clk 0:00:18.4]} 33. Kh2 {[%clk 0:00:06.2]} 33... Bg4
{[%clk 0:00:13.5]} 34. Qxg4 {[%clk 0:00:05.4]} 34... f3 {[%clk 0:00:12.2]} 35.
Rxg7+ {[%clk 0:00:05.1]} 35... Qxg7 {[%clk 0:00:11.5]} 36. gxf3 {[%clk
0:00:04.2]} 36... Qe5+ {[%clk 0:00:11.7]} 37. Qg3 {[%clk 0:00:04.6]} 37... Qd4
{[%clk 0:00:10.6]} 38. Bc4 {[%clk 0:00:04.4]} 38... Qf6 {[%clk 0:00:09.9]} 39.
Re2 {[%clk 0:00:04.2]} 39... Re8 {[%clk 0:00:10.1]} 40. Kg2 {[%clk 0:00:04.5]}
40... g5 {[%clk 0:00:10]} 41. Qg4 {[%clk 0:00:04.8]} 41... Kh8 {[%clk
0:00:09.8]} 42. Qf5 {[%clk 0:00:05.1]} 42... Qg7 {[%clk 0:00:09.7]} 43. e5
{[%clk 0:00:05.2]} 43... Rf8 {[%clk 0:00:09.5]} 44. Qe4 {[%clk 0:00:04.9]} 44...
Rf4 {[%clk 0:00:10]} 45. Qe3 {[%clk 0:00:05.2]} 45... h5 {[%clk 0:00:06.2]} 46.
exd6 {[%clk 0:00:01]} 46... Rf7 {[%clk 0:00:06.9]} 0-1

[Event "Early-Titled-Tuesday-Blitz-March-05-2024"]
[Site "Chess.com"]
[Date "2024.03.05"]
[Round "6"]
[White "Ducke13"]
[Black "Practical-Play"]
[Result "0-1"]
[WhiteElo "2352"]
[BlackElo "2525"]
[TimeControl "180+1"]
[EndTime "9:09:41 PST"]
[Termination "Practical-Play won by checkmate"]

1. Nf3 {[%clk 0:02:46.5]} 1... g6 {[%clk 0:02:56]} 2. c4 {[%clk 0:02:44.4]} 2...
Bg7 {[%clk 0:02:50.8]} 3. Nc3 {[%clk 0:02:44.6]} 3... Nf6 {[%clk 0:02:49.6]} 4.
d4 {[%clk 0:02:41.6]} 4... d5 {[%clk 0:02:49.2]} 5. h4 {[%clk 0:02:21.6]} 5...
h6 {[%clk 0:02:29.1]} 6. cxd5 {[%clk 0:02:05.7]} 6... Nxd5 {[%clk 0:02:27.1]} 7.
e4 {[%clk 0:02:05.7]} 7... Nxc3 {[%clk 0:02:27.1]} 8. bxc3 {[%clk 0:02:06.6]}
8... c5 {[%clk 0:02:26]} 9. Bb5+ {[%clk 0:02:04.6]} 9... Bd7 {[%clk 0:02:18.6]}
10. Bxd7+ {[%clk 0:02:00.4]} 10... Nxd7 {[%clk 0:02:10.9]} 11. O-O {[%clk
0:01:59.7]} 11... O-O {[%clk 0:02:08]} 12. Rb1 {[%clk 0:01:57.4]} 12... Qc7
{[%clk 0:02:03.9]} 13. Be3 {[%clk 0:01:53.6]} 13... Nf6 {[%clk 0:02:01.4]} 14.
Qd3 {[%clk 0:01:29.2]} 14... Qc6 {[%clk 0:01:33.1]} 15. d5 {[%clk 0:01:25.5]}
15... Qa4 {[%clk 0:01:28.9]} 16. e5 {[%clk 0:01:10.9]} 16... Ng4 {[%clk
0:01:21.5]} 17. Rxb7 {[%clk 0:00:56.8]} 17... Nxe5 {[%clk 0:01:13.3]} 18. Nxe5
{[%clk 0:00:52.3]} 18... Bxe5 {[%clk 0:01:14.2]} 19. Rxe7 {[%clk 0:00:49.7]}
19... Bd6 {[%clk 0:01:12.2]} 20. Rb7 {[%clk 0:00:43.6]} 20... Qxh4 {[%clk
0:01:09.3]} 21. f4 {[%clk 0:00:31.8]} 21... Rae8 {[%clk 0:01:02.3]} 22. Rf3
{[%clk 0:00:29.2]} 22... Qe1+ {[%clk 0:00:58.3]} 23. Kh2 {[%clk 0:00:16.9]}
23... Rxe3 {[%clk 0:00:46]} 24. Qxe3 {[%clk 0:00:15.8]} 24... Qxe3 {[%clk
0:00:45]} 25. Rxe3 {[%clk 0:00:16.1]} 25... Bxf4+ {[%clk 0:00:45.2]} 26. Rg3
{[%clk 0:00:16.4]} 26... h5 {[%clk 0:00:39.5]} 27. Kh3 {[%clk 0:00:15.9]} 27...
Bxg3 {[%clk 0:00:38.9]} 28. Kxg3 {[%clk 0:00:16.8]} 28... c4 {[%clk 0:00:24.7]}
29. d6 {[%clk 0:00:15.5]} 29... Re8 {[%clk 0:00:17.5]} 30. Kf3 {[%clk 0:00:15]}
30... Kf8 {[%clk 0:00:16.8]} 31. Rxa7 {[%clk 0:00:14.9]} 31... Rd8 {[%clk
0:00:16.6]} 32. d7 {[%clk 0:00:14.7]} 32... Ke7 {[%clk 0:00:16.8]} 33. a4 {[%clk
0:00:12.1]} 33... Rxd7 {[%clk 0:00:16.5]} 34. Rxd7+ {[%clk 0:00:12.2]} 34...
Kxd7 {[%clk 0:00:16.7]} 35. Ke4 {[%clk 0:00:12.9]} 35... Kc6 {[%clk 0:00:14.6]}
36. Kd4 {[%clk 0:00:13.4]} 36... g5 {[%clk 0:00:14.6]} 37. Ke5 {[%clk
0:00:11.2]} 37... h4 {[%clk 0:00:09.8]} 38. Kf5 {[%clk 0:00:11.2]} 38... f6
{[%clk 0:00:10]} 39. Kg4 {[%clk 0:00:09.5]} 39... Kb6 {[%clk 0:00:09.9]} 40. Kf5
{[%clk 0:00:06.4]} 40... Ka5 {[%clk 0:00:10.1]} 41. Kxf6 {[%clk 0:00:06.5]}
41... g4 {[%clk 0:00:10]} 42. Kg5 {[%clk 0:00:07.2]} 42... h3 {[%clk 0:00:10.3]}
43. gxh3 {[%clk 0:00:07.5]} 43... gxh3 {[%clk 0:00:10.4]} 44. Kf4 {[%clk
0:00:07.9]} 44... h2 {[%clk 0:00:11.3]} 45. Ke4 {[%clk 0:00:08.4]} 45... h1=Q+
{[%clk 0:00:11.3]} 46. Kd4 {[%clk 0:00:09.3]} 46... Qf1 {[%clk 0:00:10.9]} 47.
Kc5 {[%clk 0:00:08.9]} 47... Kxa4 {[%clk 0:00:11.2]} 48. Kb6 {[%clk 0:00:09.5]}
48... Kb3 {[%clk 0:00:11.5]} 49. Kb5 {[%clk 0:00:09.7]} 49... Kxc3 {[%clk
0:00:12]} 50. Kc5 {[%clk 0:00:10.6]} 50... Qf5+ {[%clk 0:00:11.1]} 51. Kb6
{[%clk 0:00:10.8]} 51... Kd4 {[%clk 0:00:11.1]} 52. Ka6 {[%clk 0:00:10.8]} 52...
c3 {[%clk 0:00:11.3]} 53. Kb6 {[%clk 0:00:11.1]} 53... c2 {[%clk 0:00:11.7]} 54.
Kc7 {[%clk 0:00:11.1]} 54... c1=Q+ {[%clk 0:00:11.6]} 55. Kd8 {[%clk 0:00:12]}
55... Qcc8+ {[%clk 0:00:10.5]} 56. Ke7 {[%clk 0:00:12.9]} 56... Qcd7# {[%clk
0:00:11.4]} 0-1

[Event "Early-Titled-Tuesday-Blitz-March-05-2024"]
[Site "Chess.com"]
[Date "2024.03.05"]
[Round "6"]
[White "ninguno46"]
[Black "cristiano78"]
[Result "1/2-1/2"]
[WhiteElo "2529"]
[BlackElo "2278"]
[TimeControl "180+1"]
[EndTime "9:09:44 PST"]
[Termination "Game drawn by stalemate"]

1. e4 {[%clk 0:02:59.7]} 1... c5 {[%clk 0:02:54.4]} 2. Nc3 {[%clk 0:02:59.2]}
2... d6 {[%clk 0:02:50.4]} 3. f4 {[%clk 0:02:59.2]} 3... a6 {[%clk 0:02:49.6]}
4. Nf3 {[%clk 0:02:57.7]} 4... Bg4 {[%clk 0:02:46.1]} 5. h3 {[%clk 0:02:53.7]}
5... Bxf3 {[%clk 0:02:45.2]} 6. Qxf3 {[%clk 0:02:54.6]} 6... Nc6 {[%clk
0:02:45.3]} 7. g3 {[%clk 0:02:49.9]} 7... Nd4 {[%clk 0:02:32.8]} 8. Qd1 {[%clk
0:02:49.6]} 8... g6 {[%clk 0:02:33.2]} 9. Bg2 {[%clk 0:02:49.1]} 9... Bg7 {[%clk
0:02:32.9]} 10. O-O {[%clk 0:02:48.6]} 10... Rb8 {[%clk 0:02:31.1]} 11. Nd5
{[%clk 0:02:47.2]} 11... e6 {[%clk 0:02:30.1]} 12. Ne3 {[%clk 0:02:47]} 12...
Ne7 {[%clk 0:02:28.5]} 13. d3 {[%clk 0:02:44.3]} 13... O-O {[%clk 0:02:28]} 14.
Rb1 {[%clk 0:02:40.8]} 14... b5 {[%clk 0:02:24.4]} 15. a3 {[%clk 0:02:39.9]}
15... b4 {[%clk 0:02:24]} 16. axb4 {[%clk 0:02:39.5]} 16... cxb4 {[%clk
0:02:24]} 17. b3 {[%clk 0:02:36.4]} 17... Nb5 {[%clk 0:02:22.6]} 18. Bd2 {[%clk
0:02:29.9]} 18... Qb6 {[%clk 0:02:21.4]} 19. Kh2 {[%clk 0:02:25.8]} 19... Nc3
{[%clk 0:02:20.5]} 20. Bxc3 {[%clk 0:02:25.2]} 20... Qxe3 {[%clk 0:02:16.2]} 21.
Bxg7 {[%clk 0:02:15.8]} 21... Kxg7 {[%clk 0:02:15.5]} 22. Ra1 {[%clk 0:02:16.3]}
22... Ra8 {[%clk 0:02:08.4]} 23. Qg4 {[%clk 0:01:27.3]} 23... f5 {[%clk
0:01:56.6]} 24. Qd1 {[%clk 0:01:22.4]} 24... Ra7 {[%clk 0:01:52.5]} 25. Re1
{[%clk 0:01:18.8]} 25... Qd4 {[%clk 0:01:49.4]} 26. exf5 {[%clk 0:01:15.1]}
26... Nxf5 {[%clk 0:01:48]} 27. Rxe6 {[%clk 0:01:08.7]} 27... h5 {[%clk
0:01:43.4]} 28. h4 {[%clk 0:00:52.6]} 28... Nh6 {[%clk 0:01:39]} 29. Bf3 {[%clk
0:00:41.4]} 29... Qf2+ {[%clk 0:01:37.4]} 30. Kh3 {[%clk 0:00:40.5]} 30... Nf5
{[%clk 0:01:28.9]} 31. Qg1 {[%clk 0:00:24.3]} 31... Qxf3 {[%clk 0:01:22.5]} 32.
Qxa7+ {[%clk 0:00:22.1]} 32... Kh6 {[%clk 0:01:22.3]} 33. Qg1 {[%clk 0:00:17.2]}
33... Qg4+ {[%clk 0:01:20.4]} 34. Kh2 {[%clk 0:00:16.1]} 34... Nxh4 {[%clk
0:01:12.5]} 35. Re3 {[%clk 0:00:15.1]} 35... Nf3+ {[%clk 0:01:11]} 36. Rxf3
{[%clk 0:00:14.9]} 36... Qxf3 {[%clk 0:01:11.3]} 37. Rf1 {[%clk 0:00:15.2]}
37... Qg4 {[%clk 0:01:10.4]} 38. Qg2 {[%clk 0:00:14.6]} 38... Re8 {[%clk
0:01:06.3]} 39. Qf3 {[%clk 0:00:13.7]} 39... Re2+ {[%clk 0:01:03.9]} 40. Kg1
{[%clk 0:00:13.6]} 40... Qxf3 {[%clk 0:01:01]} 41. Rxf3 {[%clk 0:00:13.2]} 41...
Rxc2 {[%clk 0:01:01.6]} 42. f5 {[%clk 0:00:13.6]} 42... gxf5 {[%clk 0:01:00.9]}
43. Rxf5 {[%clk 0:00:13.7]} 43... Rc3 {[%clk 0:01:01.2]} 44. Rd5 {[%clk
0:00:14]} 44... Rxb3 {[%clk 0:01:00.8]} 45. Rxd6+ {[%clk 0:00:14.2]} 45... Kg5
{[%clk 0:00:58.7]} 46. Rd5+ {[%clk 0:00:14.2]} 46... Kg4 {[%clk 0:00:58.8]} 47.
Kf2 {[%clk 0:00:14.2]} 47... Rb2+ {[%clk 0:00:56.7]} 48. Ke3 {[%clk 0:00:14.5]}
48... b3 {[%clk 0:00:55.7]} 49. Ra5 {[%clk 0:00:14.2]} 49... Rb1 {[%clk
0:00:52.5]} 50. Rxa6 {[%clk 0:00:12]} 50... Kxg3 {[%clk 0:00:51.9]} 51. Rg6+
{[%clk 0:00:11.8]} 51... Kh3 {[%clk 0:00:51.5]} 52. Kd2 {[%clk 0:00:12]} 52...
h4 {[%clk 0:00:43.6]} 53. Kc3 {[%clk 0:00:11.6]} 53... Kh2 {[%clk 0:00:43.5]}
54. d4 {[%clk 0:00:11.8]} 54... h3 {[%clk 0:00:43.5]} 55. d5 {[%clk 0:00:12]}
55... Rd1 {[%clk 0:00:41.8]} 56. d6 {[%clk 0:00:10.6]} 56... Kh1 {[%clk
0:00:38]} 57. Kxb3 {[%clk 0:00:10.5]} 57... h2 {[%clk 0:00:38.2]} 58. Kc4 {[%clk
0:00:10.3]} 58... Rc1+ {[%clk 0:00:34.5]} 59. Kd5 {[%clk 0:00:10.4]} 59... Rd1+
{[%clk 0:00:34.7]} 60. Ke6 {[%clk 0:00:11]} 60... Rxd6+ {[%clk 0:00:27.4]} 61.
Kxd6 {[%clk 0:00:10.7]} 1/2-1/2

[Event "Early-Titled-Tuesday-Blitz-March-05-2024"]
[Site "Chess.com"]
[Date "2024.03.05"]
[Round "6"]
[White "Darius321"]
[Black "Caracal3000"]
[Result "1/2-1/2"]
[WhiteElo "2368"]
[BlackElo "2477"]
[TimeControl "180+1"]
[EndTime "9:09:45 PST"]
[Termination "Game drawn by repetition"]

1. e4 {[%clk 0:02:59.4]} 1... c5 {[%clk 0:02:59.3]} 2. d4 {[%clk 0:02:57.9]}
2... cxd4 {[%clk 0:02:57]} 3. c3 {[%clk 0:02:58.5]} 3... Nf6 {[%clk 0:02:56.8]}
4. e5 {[%clk 0:02:57.1]} 4... Nd5 {[%clk 0:02:57.4]} 5. Nf3 {[%clk 0:02:57.4]}
5... e6 {[%clk 0:02:57.4]} 6. Bc4 {[%clk 0:02:56.9]} 6... d6 {[%clk 0:02:57.2]}
7. cxd4 {[%clk 0:02:55.2]} 7... Nb6 {[%clk 0:02:55.9]} 8. Bb3 {[%clk 0:02:52.9]}
8... dxe5 {[%clk 0:02:55.3]} 9. dxe5 {[%clk 0:02:53.7]} 9... Qxd1+ {[%clk
0:02:55]} 10. Bxd1 {[%clk 0:02:54.6]} 10... Bd7 {[%clk 0:02:53.5]} 11. Nc3
{[%clk 0:02:49.4]} 11... Bc6 {[%clk 0:02:51.1]} 12. O-O {[%clk 0:02:49.3]} 12...
Bc5 {[%clk 0:02:48.6]} 13. Re1 {[%clk 0:02:42.1]} 13... N8d7 {[%clk 0:02:46.9]}
14. Ne4 {[%clk 0:02:39.4]} 14... Bxe4 {[%clk 0:02:40.7]} 15. Rxe4 {[%clk
0:02:38.5]} 15... O-O {[%clk 0:02:33.9]} 16. Bb3 {[%clk 0:02:20.3]} 16... h6
{[%clk 0:02:18.9]} 17. Kf1 {[%clk 0:02:17.4]} 17... Rfd8 {[%clk 0:02:18.2]} 18.
Bd2 {[%clk 0:02:10.1]} 18... Rac8 {[%clk 0:02:07.9]} 19. Bc3 {[%clk 0:02:09.4]}
19... Nb8 {[%clk 0:02:07.7]} 20. Ree1 {[%clk 0:02:00.2]} 20... Nc6 {[%clk
0:02:06.5]} 21. Rad1 {[%clk 0:01:59.9]} 21... Kf8 {[%clk 0:01:59.8]} 22. Rxd8+
{[%clk 0:01:55.3]} 22... Rxd8 {[%clk 0:01:59.9]} 23. Rd1 {[%clk 0:01:54.8]}
23... Rxd1+ {[%clk 0:01:59.7]} 24. Bxd1 {[%clk 0:01:55.3]} 24... Nd7 {[%clk
0:01:56]} 25. Ba4 {[%clk 0:01:46.8]} 25... Ndb8 {[%clk 0:01:48.2]} 26. Ke2
{[%clk 0:01:39.8]} 26... a6 {[%clk 0:01:45.1]} 27. a3 {[%clk 0:01:32]} 27... b5
{[%clk 0:01:44.5]} 28. Bc2 {[%clk 0:01:29.8]} 28... Bb6 {[%clk 0:01:44.9]} 29.
Be4 {[%clk 0:01:23.5]} 29... Bc7 {[%clk 0:01:44.2]} 30. Kd3 {[%clk 0:01:12.4]}
30... Ke7 {[%clk 0:01:43.8]} 31. Bxc6 {[%clk 0:00:52.5]} 31... Nxc6 {[%clk
0:01:43.1]} 32. Ke4 {[%clk 0:00:53.1]} 32... Bb6 {[%clk 0:01:39.6]} 33. Nd4
{[%clk 0:00:49.9]} 33... Nxd4 {[%clk 0:01:26.9]} 34. Bxd4 {[%clk 0:00:49.7]}
34... Bc7 {[%clk 0:01:27.8]} 35. f4 {[%clk 0:00:47.5]} 35... g6 {[%clk
0:01:26.7]} 36. g4 {[%clk 0:00:46.3]} 36... Ba5 {[%clk 0:01:15.2]} 37. f5 {[%clk
0:00:35.8]} 37... Bd2 {[%clk 0:00:54.4]} 38. h3 {[%clk 0:00:25.2]} 38... Kd7
{[%clk 0:00:44.4]} 39. b3 {[%clk 0:00:22.9]} 39... Kc6 {[%clk 0:00:42.1]} 40. a4
{[%clk 0:00:20.7]} 40... bxa4 {[%clk 0:00:39.4]} 41. bxa4 {[%clk 0:00:21.6]}
41... Bb4 {[%clk 0:00:34.8]} 42. Be3 {[%clk 0:00:18]} 42... Bf8 {[%clk
0:00:32.2]} 43. h4 {[%clk 0:00:14.9]} 43... h5 {[%clk 0:00:31.8]} 44. fxg6
{[%clk 0:00:12.1]} 44... fxg6 {[%clk 0:00:31.8]} 45. gxh5 {[%clk 0:00:12.1]}
45... gxh5 {[%clk 0:00:32.7]} 46. Bg5 {[%clk 0:00:11]} 46... Kc5 {[%clk
0:00:26.2]} 47. Bd8 {[%clk 0:00:10.8]} 47... Kb4 {[%clk 0:00:26.1]} 48. a5
{[%clk 0:00:10.5]} 48... Bh6 {[%clk 0:00:23.6]} 49. Bg5 {[%clk 0:00:08.3]} 49...
Bf8 {[%clk 0:00:16.8]} 50. Bd8 {[%clk 0:00:08.3]} 50... Kb5 {[%clk 0:00:14.4]}
51. Kf4 {[%clk 0:00:07.4]} 51... Bh6+ {[%clk 0:00:12.8]} 52. Bg5 {[%clk
0:00:06.8]} 52... Bg7 {[%clk 0:00:13.4]} 53. Bf6 {[%clk 0:00:06.8]} 53... Bh6+
{[%clk 0:00:13.7]} 54. Bg5 {[%clk 0:00:07.2]} 54... Bf8 {[%clk 0:00:14.4]} 55.
Bd8 {[%clk 0:00:06.4]} 55... Bh6+ {[%clk 0:00:10.7]} 56. Bg5 {[%clk 0:00:06.5]}
1/2-1/2

[Event "Early-Titled-Tuesday-Blitz-March-05-2024"]
[Site "Chess.com"]
[Date "2024.03.05"]
[Round "6"]
[White "jens1102"]
[Black "Herzog2012"]
[Result "0-1"]
[WhiteElo "2618"]
[BlackElo "2512"]
[TimeControl "180+1"]
[EndTime "9:09:46 PST"]
[Termination "Herzog2012 won by checkmate"]

1. g3 {[%clk 0:02:56.7]} 1... d5 {[%clk 0:02:58.3]} 2. Nf3 {[%clk 0:02:33.6]}
2... Nf6 {[%clk 0:02:56.9]} 3. Bg2 {[%clk 0:02:34]} 3... e6 {[%clk 0:02:57]} 4.
O-O {[%clk 0:02:34.9]} 4... Be7 {[%clk 0:02:56.7]} 5. c4 {[%clk 0:02:28]} 5...
O-O {[%clk 0:02:53.5]} 6. d4 {[%clk 0:02:26.6]} 6... dxc4 {[%clk 0:02:53.2]} 7.
Qc2 {[%clk 0:02:27]} 7... a6 {[%clk 0:02:52.6]} 8. a4 {[%clk 0:02:27.5]} 8...
Bd7 {[%clk 0:02:51.7]} 9. Qxc4 {[%clk 0:02:28.3]} 9... Bc6 {[%clk 0:02:51.6]}
10. Bg5 {[%clk 0:02:29.1]} 10... h6 {[%clk 0:02:49.8]} 11. Bxf6 {[%clk
0:02:29.2]} 11... Bxf6 {[%clk 0:02:50]} 12. Nc3 {[%clk 0:02:30.1]} 12... Bxf3
{[%clk 0:02:44.6]} 13. Bxf3 {[%clk 0:02:30.3]} 13... c6 {[%clk 0:02:44.8]} 14.
e3 {[%clk 0:02:30.9]} 14... a5 {[%clk 0:02:45]} 15. Rad1 {[%clk 0:02:29.5]}
15... Na6 {[%clk 0:02:44.9]} 16. Bg2 {[%clk 0:02:27.4]} 16... Nb4 {[%clk
0:02:40.3]} 17. f4 {[%clk 0:02:27.8]} 17... Qb6 {[%clk 0:02:33.4]} 18. f5 {[%clk
0:02:27.5]} 18... e5 {[%clk 0:02:16.2]} 19. Ne4 {[%clk 0:02:23.4]} 19... Nd5
{[%clk 0:02:14.1]} 20. Nxf6+ {[%clk 0:02:23.8]} 20... Nxf6 {[%clk 0:02:15]} 21.
Kh1 {[%clk 0:02:17.8]} 21... exd4 {[%clk 0:02:02.1]} 22. Rxd4 {[%clk 0:02:18.4]}
22... Qxb2 {[%clk 0:01:55.8]} 23. e4 {[%clk 0:02:18.4]} 23... Ng4 {[%clk
0:01:53.5]} 24. Qc5 {[%clk 0:01:59.3]} 24... Ne3 {[%clk 0:01:43.3]} 25. Rg1
{[%clk 0:01:56.7]} 25... b6 {[%clk 0:01:25.7]} 26. Qd6 {[%clk 0:01:40.8]} 26...
Rfd8 {[%clk 0:00:56.6]} 27. Qxd8+ {[%clk 0:01:39.9]} 27... Rxd8 {[%clk
0:00:57.5]} 28. Rxd8+ {[%clk 0:01:40]} 28... Kh7 {[%clk 0:00:58.1]} 29. e5
{[%clk 0:01:21.3]} 29... Nxg2 {[%clk 0:00:48]} 30. Rxg2 {[%clk 0:01:21.5]} 30...
Qb1+ {[%clk 0:00:47.6]} 31. Rg1 {[%clk 0:01:22]} 31... Qe4+ {[%clk 0:00:43.7]}
32. Rg2 {[%clk 0:01:21.6]} 32... Qxf5 {[%clk 0:00:43.8]} 33. Rb8 {[%clk
0:01:10.9]} 33... c5 {[%clk 0:00:29.8]} 34. Rxb6 {[%clk 0:01:09.5]} 34... c4
{[%clk 0:00:27.9]} 35. Rbb2 {[%clk 0:00:56.6]} 35... Qxe5 {[%clk 0:00:26.4]} 36.
Rge2 {[%clk 0:00:49]} 36... Qd5+ {[%clk 0:00:25.5]} 37. Kg1 {[%clk 0:00:49.4]}
37... Qd1+ {[%clk 0:00:25.6]} 38. Kf2 {[%clk 0:00:47.8]} 38... Qxa4 {[%clk
0:00:25.6]} 39. Rec2 {[%clk 0:00:48]} 39... c3 {[%clk 0:00:23.7]} 40. Ra2 {[%clk
0:00:48.6]} 40... Qd4+ {[%clk 0:00:18.8]} 41. Kg2 {[%clk 0:00:49]} 41... a4
{[%clk 0:00:18.9]} 42. Rf2 {[%clk 0:00:49]} 42... f5 {[%clk 0:00:13.7]} 43. h4
{[%clk 0:00:48.5]} 43... g5 {[%clk 0:00:13.7]} 44. Rfe2 {[%clk 0:00:48.7]} 44...
Kg6 {[%clk 0:00:12.3]} 45. hxg5 {[%clk 0:00:48]} 45... hxg5 {[%clk 0:00:12]} 46.
Kf3 {[%clk 0:00:43]} 46... Qd3+ {[%clk 0:00:07.1]} 47. Kg2 {[%clk 0:00:41.4]}
47... g4 {[%clk 0:00:06.8]} 48. Rf2 {[%clk 0:00:37.6]} 48... Qe4+ {[%clk
0:00:04.6]} 49. Kh2 {[%clk 0:00:38.2]} 49... Kf6 {[%clk 0:00:04.9]} 50. Rfc2
{[%clk 0:00:36.9]} 50... Qc4 {[%clk 0:00:04]} 51. Ra3 {[%clk 0:00:35]} 51... f4
{[%clk 0:00:03.5]} 52. gxf4 {[%clk 0:00:29.8]} 52... Qxf4+ {[%clk 0:00:03.3]}
53. Kg2 {[%clk 0:00:29.9]} 53... Qf3+ {[%clk 0:00:03.4]} 54. Kh2 {[%clk
0:00:29.6]} 54... g3+ {[%clk 0:00:03.4]} 55. Kg1 {[%clk 0:00:29.6]} 55... Qd1+
{[%clk 0:00:03.3]} 56. Kg2 {[%clk 0:00:30.2]} 56... Qxc2+ {[%clk 0:00:04.2]} 57.
Kxg3 {[%clk 0:00:31.1]} 57... Qb2 {[%clk 0:00:04.4]} 58. Rxa4 {[%clk 0:00:31.6]}
58... c2 {[%clk 0:00:05]} 59. Rf4+ {[%clk 0:00:32.2]} 59... Ke6 {[%clk
0:00:04.4]} 60. Rf2 {[%clk 0:00:33.1]} 60... c1=Q {[%clk 0:00:04.3]} 61. Rf3
{[%clk 0:00:34]} 61... Qe5+ {[%clk 0:00:03.9]} 62. Kg4 {[%clk 0:00:34.5]} 62...
Qcg5+ {[%clk 0:00:04.1]} 63. Kh3 {[%clk 0:00:35.4]} 63... Qh8# {[%clk
0:00:04.5]} 0-1